fUSD/lending_fUSD_20240216
["ID","MTS","AMOUNT","RATE_DAILY","PERIOD"]
[314250203,1708119092102,-500.0,0.00050136,60]
[314250204,1708119092111,-500.0,0.00050136,60]
[314250205,1708119092120,-662.34,0.00050136,60]
[314250206,1708119092129,-500.0,0.00050136,60]
[314250207,1708119092139,-500.0,0.00050136,60]
[314250208,1708119092149,-500.0,0.00050136,60]
[314250209,1708119092158,-500.0,0.00050136,60]
[314250210,1708119092168,-500.0,0.00050136,60]
[314250211,1708119092177,-725.97,0.00050136,60]
[314250212,1708119092187,-500.0,0.00050136,60]
[314250213,1708119092198,-500.0,0.00050136,60]
[314250214,1708119092208,-500.0,0.00050136,60]
[314250215,1708119092217,-862.39,0.00050136,60]
[314250216,1708119092227,-500.0,0.00050136,60]
[314250217,1708119092236,-500.0,0.00050136,60]
[314250218,1708119092247,-500.0,0.00050136,60]
[314250219,1708119092256,-500.0,0.00050136,60]
[314250220,1708119092266,-500.0,0.00050136,60]
[314250221,1708119092276,-527.81938863,0.00050136,120]
[314250222,1708119092286,-500.0,0.00050136,60]
[314250223,1708119092295,-500.0,0.00050136,60]
[314250224,1708119092305,-500.0,0.00050136,60]
[314250225,1708119092314,-500.0,0.00050136,60]
[314250226,1708119092323,-500.0,0.00050136,60]
[314250227,1708119092332,-500.0,0.00050136,60]
[314250228,1708119092342,-693.28,0.00050136,60]
[314250229,1708119092351,-500.0,0.00050136,60]
[314250230,1708119092360,-500.0,0.00050136,60]
[314250231,1708119092370,-500.0,0.00050136,60]
[314250232,1708119092379,-500.0,0.00050136,60]
[314250233,1708119092388,-703.48,0.00050136,60]
[314250234,1708119092397,-500.0,0.00050136,60]
[314250235,1708119092407,-500.0,0.00050136,60]
[314250236,1708119092416,-500.0,0.00050136,60]
[314250237,1708119092425,-500.0,0.00050136,60]
[314250238,1708119092435,-500.0,0.00050136,60]
[314250239,1708119092444,-566.58,0.00050136,60]
[314250240,1708119092454,-500.0,0.00050136,60]
[314250241,1708119092464,-500.0,0.00050136,60]
[314250242,1708119092473,-500.0,0.00050136,60]
[314250243,1708119092483,-500.0,0.00050136,60]
[314250244,1708119092493,-1032.17,0.00050136,60]
[314250245,1708119092503,-536.17,0.00050136,60]
[314250246,1708119092513,-500.0,0.00050136,60]
[314250247,1708119092522,-500.0,0.00050136,60]
[314250248,1708119092532,-500.0,0.00050136,60]
[314250249,1708119092541,-500.0,0.00050136,60]
[314250250,1708119092551,-505.64679754,0.00050136,60]
[314250251,1708119092562,-986.8,0.00050136,60]
[314250252,1708119092572,-500.0,0.00050136,60]
[314250253,1708119092581,-500.0,0.00050136,60]
[314250254,1708119092591,-539.44,0.00050136,60]
[314250255,1708119092600,-782.04,0.00050136,60]
[314250256,1708119092609,-500.0,0.00050136,60]
[314250257,1708119092619,-500.0,0.00050136,60]
[314250258,1708119092628,-500.0,0.00050136,60]
[314250259,1708119092637,-500.0,0.00050136,60]
[314250260,1708119092646,-500.94,0.00050136,60]
[314250261,1708119092656,-500.0,0.00050136,60]
[314250262,1708119092727,-500.0,0.00050136,60]
[314250263,1708119092737,-500.0,0.00050136,60]
[314250264,1708119092746,-500.0,0.00050136,60]
[314250265,1708119092755,-500.0,0.00050136,60]
[314250266,1708119092765,-500.0,0.00050136,60]
[314250267,1708119092774,-708.38,0.00050136,60]
[314250268,1708119092783,-500.0,0.00050136,60]
[314250269,1708119092793,-500.0,0.00050136,60]
[314250270,1708119092802,-515.61,0.00050136,60]
[314250271,1708119092812,-500.0,0.00050136,60]
[314250272,1708119092821,-516.43623104,0.00050136,60]
[314250273,1708119092831,-500.0,0.00050136,60]
[314250274,1708119092841,-237.77146976,0.00050136,60]
[314250275,1708119092850,-578.51,0.00050136,60]
[314250276,1708119092860,-500.0,0.00050136,7]
[314250277,1708119092870,-500.0,0.00050136,60]
[314250278,1708119092879,-500.0,0.00050136,60]
[314250279,1708119092889,-513.54670981,0.00050136,60]
[314250280,1708119092899,-500.0,0.00050136,60]
[314250281,1708119092909,-500.0,0.00050136,60]
[314250282,1708119092923,-500.0,0.00050136,60]
[314250283,1708119092932,-940.09,0.00050136,60]
[314250284,1708119092941,-500.0,0.00050136,60]
[314250285,1708119092951,-500.0,0.00050136,60]
[314250286,1708119092962,-500.0,0.00050136,60]
[314250287,1708119092973,-500.0,0.00050136,60]
[314250288,1708119092983,-500.0,0.00050136,60]
[314250289,1708119092994,-500.0,0.00050136,60]
[314250290,1708119093005,-500.0,0.00050136,60]
[314250291,1708119093015,-500.0,0.00050136,60]
[314250292,1708119093026,-816.62,0.00050136,60]
[314250293,1708119093036,-500.0,0.00050136,60]
[314250294,1708119093046,-500.0,0.00050136,60]
[314250295,1708119093056,-500.0,0.00050136,60]
[314250296,1708119093066,-500.0,0.00050136,60]
[314250297,1708119093076,-500.0,0.00050136,60]
[314250298,1708119093086,-500.0,0.00050136,60]
[314250299,1708119093095,-642.11,0.00050136,60]
[314250300,1708119093105,-500.0,0.00050136,60]
[314250301,1708119093115,-500.0,0.00050136,60]
[314250302,1708119093125,-500.0,0.00050136,60]
[314250303,1708119093135,-500.0,0.00050136,60]
[314250304,1708119093145,-500.0,0.00050136,60]
[314250305,1708119093155,-500.0,0.00050136,60]
[314250306,1708119093165,-500.0,0.00050136,60]
[314250307,1708119093175,-500.0,0.00050136,60]
[314250308,1708119093186,-500.0,0.00050136,60]
[314250309,1708119093197,-500.0,0.00050136,60]
[314250310,1708119093207,-500.0,0.00050136,60]
[314250311,1708119093217,-500.0,0.00050136,60]
[314250312,1708119093227,-1167.88,0.00050136,60]
[314250313,1708119093237,-500.0,0.00050136,60]
[314250314,1708119093247,-500.0,0.00050136,60]
[314250315,1708119093256,-500.0,0.00050136,60]
[314250316,1708119093266,-500.0,0.00050136,60]
[314250317,1708119093276,-500.0,0.00050136,60]
[314250318,1708119093286,-500.0,0.00050136,60]
[314250319,1708119093296,-481.9484246,0.00050136,60]
[314250320,1708119093306,-851.65,0.00050136,60]
[314250321,1708119093315,-500.0,0.00050136,60]
[314250322,1708119093325,-257.16947159,0.00050136,60]
[314250323,1708119093334,-500.0,0.00050136,60]
[314250324,1708119093344,-500.0,0.00050136,60]
[314250325,1708119093353,-500.0,0.00050136,60]
[314250326,1708119093363,-500.0,0.00050136,60]
[314250327,1708119093372,-500.0,0.00050136,60]
[314250328,1708119093383,-500.0,0.00050136,60]
[314250329,1708119093393,-500.0,0.00050136,60]
[314250330,1708119093402,-500.0,0.00050136,60]
[314250331,1708119093412,-364.8564979,0.00050136,60]
[314250332,1708119093422,-2216.52,0.00050136,60]
[314250333,1708119093431,-500.0,0.00050136,60]
[314250334,1708119093441,-500.0,0.00050136,60]
[314250335,1708119093453,-500.0,0.00050136,60]
[314250336,1708119093462,-500.0,0.00050136,60]
[314250337,1708119093471,-500.0,0.00050136,60]
[314250338,1708119093481,-500.0,0.00050136,60]
[314250339,1708119093490,-500.0,0.00050136,60]
[314250340,1708119093500,-500.0,0.00050136,60]
[314250341,1708119093510,-500.0,0.00050136,60]
[314250342,1708119093520,-694.71,0.00050136,60]
[314250343,1708119093530,-500.0,0.00050136,60]
[314250344,1708119093539,-500.0,0.00050136,60]
[314250345,1708119093548,-500.0,0.00050136,60]
[314250346,1708119093558,-500.0,0.00050136,60]
[314250347,1708119093568,-500.0,0.00050136,60]
[314250348,1708119093578,-500.0,0.00050136,60]
[314250349,1708119093588,-500.0,0.00050136,60]
[314250350,1708119093597,-500.0,0.00050136,60]
[314250351,1708119093607,-500.0,0.00050136,60]
[314250352,1708119093618,-2871.6,0.00050136,60]
[314250353,1708119093628,-500.0,0.00050136,60]
[314250354,1708119093638,-500.0,0.00050136,60]
[314250355,1708119093647,-500.0,0.00050136,60]
[314250356,1708119093657,-500.0,0.00050136,60]
[314250357,1708119093667,-562.06,0.00050136,60]
[314250358,1708119093677,-500.0,0.00050136,60]
[314250359,1708119093687,-589.85,0.00050136,60]
[314250360,1708119093699,-500.0,0.00050136,60]
[314250361,1708119093709,-1083.11,0.00050136,60]
[314250362,1708119093720,-500.0,0.00050136,60]
[314250363,1708119093730,-500.0,0.00050136,60]
[314250364,1708119093740,-500.0,0.00050136,60]
[314250365,1708119093750,-500.0,0.00050136,30]
[314250366,1708119093760,-2574.8,0.00050136,60]
[314250367,1708119093770,-150.0,0.00050136,60]
[314250368,1708119093779,-500.0,0.00050136,60]
[314250369,1708119093789,-500.0,0.00050136,60]
[314250370,1708119093799,-500.0,0.00050136,60]
[314250371,1708119093810,-500.0,0.00050136,60]
[314250372,1708119093820,-890.17,0.00050136,60]
[314250373,1708119093830,-214.31762067,0.00050136,60]
[314250374,1708119093840,-1244.45,0.00050136,60]
[314250375,1708119093850,-500.0,0.00050136,60]
[314250376,1708119093860,-500.0,0.00050136,60]
[314250377,1708119093869,-500.0,0.00050136,60]
[314250378,1708119093879,-500.0,0.00050136,60]
[314250379,1708119093890,-500.0,0.00050136,60]
[314250380,1708119093899,-500.0,0.00050136,60]
[314250381,1708119093910,-250.0,0.00050136,60]
[314250382,1708119093923,-588.9,0.00050136,60]
[314250383,1708119093933,-1983.03,0.00050136,60]
[314250384,1708119093944,-500.0,0.00050136,60]
[314250385,1708119093953,-500.0,0.00050136,60]
[314250386,1708119093963,-500.0,0.00050136,60]
[314250387,1708119093973,-500.0,0.00050136,60]
[314250388,1708119093983,-500.0,0.00050136,60]
[314250389,1708119093993,-500.0,0.00050136,60]
[314250390,1708119094003,-1068.84,0.00050136,60]
[314250391,1708119094013,-500.0,0.00050136,60]
[314250392,1708119094055,-742.37,0.00050136,60]
[314250393,1708119094066,-500.0,0.00050136,60]
[314250394,1708119094075,-4400.67,0.00050136,60]
[314250395,1708119094085,-803.55,0.00050136,60]
[314250396,1708119094095,-500.0,0.00050136,60]
[314250397,1708119094105,-821.93,0.00050136,60]
[314250398,1708119094114,-500.0,0.00050136,60]
[314250399,1708119094124,-500.0,0.00050136,60]
[314250400,1708119094134,-500.0,0.00050136,60]
[314250401,1708119094144,-500.0,0.00050136,60]
[314250402,1708119094154,-538.03,0.00050136,60]
[314250403,1708119094164,-500.0,0.00050136,60]
[314250404,1708119094174,-500.0,0.00050136,60]
[314250405,1708119094185,-500.0,0.00050136,60]
[314250406,1708119094195,-500.0,0.00050136,60]
[314250407,1708119094205,-500.0,0.00050136,60]
[314250408,1708119094215,-3625.09,0.00050136,60]
[314250409,1708119094225,-500.0,0.00050136,60]
[314250410,1708119094236,-964.44,0.00050136,60]
[314250411,1708119094246,-500.0,0.00050136,60]
[314250412,1708119094256,-1492.92,0.00050136,60]
[314250413,1708119094266,-500.0,0.00050136,60]
[314250414,1708119094277,-2046.77,0.00050136,60]
[314250415,1708119094287,-500.0,0.00050136,60]
[314250416,1708119094297,-500.0,0.00050136,60]
[314250417,1708119094306,-500.0,0.00050136,60]
[314250418,1708119094316,-500.0,0.00050136,60]
[314250419,1708119094325,-802.5,0.00050136,60]
[314250420,1708119094335,-500.0,0.00050136,60]
[314250421,1708119094344,-610.16,0.00050136,60]
[314250422,1708119094354,-500.0,0.00050136,60]
[314250423,1708119094364,-500.0,0.00050136,60]
[314250424,1708119094374,-1066.34,0.00050136,60]
[314250425,1708119094384,-500.0,0.00050136,60]
[314250426,1708119094394,-797.01,0.00050136,60]
[314250427,1708119094404,-500.0,0.00050136,60]
[314250428,1708119094414,-3199.37,0.00050136,60]
[314250429,1708119094423,-500.0,0.00050136,60]
[314250430,1708119094433,-729.2,0.00050136,60]
[314250431,1708119094444,-500.0,0.00050136,60]
[314250432,1708119094454,-24352.15,0.00050136,60]
[314250433,1708119094464,-1397.78,0.00050136,60]
[314250434,1708119094473,-500.0,0.00050136,60]
[314250435,1708119094483,-500.0,0.00050136,60]
[314250436,1708119094493,-500.0,0.00050136,60]
[314250437,1708119094503,-500.0,0.00050136,60]
[314250438,1708119094513,-500.0,0.00050136,60]
[314250439,1708119094523,-2225.09,0.00050136,60]
[314250440,1708119094533,-500.0,0.00050136,60]
[314250441,1708119094543,-500.0,0.00050136,60]
[314250442,1708119094554,-3059.93,0.00050136,60]
[314250443,1708119094564,-500.0,0.00050136,60]
[314250444,1708119094574,-663.32,0.00050136,60]
[314250445,1708119094585,-500.0,0.00050136,60]
[314250446,1708119094595,-559.03,0.00050136,60]
[314250447,1708119094605,-500.0,0.00050136,60]
[314250448,1708119094614,-500.0,0.00050136,60]
[314250449,1708119094625,-500.0,0.00050136,60]
[314250450,1708119094634,-500.0,0.00050136,60]
[314250451,1708119094644,-500.0,0.00050136,60]
[314250452,1708119094654,-500.0,0.00050136,60]
[314250453,1708119094664,-3189.76,0.00050136,60]
[314250454,1708119094674,-2572.92,0.00050136,60]
[314250455,1708119094684,-1075.21,0.00050136,60]
[314250456,1708119094694,-500.0,0.00050136,60]
[314250457,1708119094704,-500.0,0.00050136,60]
[314250458,1708119094713,-500.0,0.00050136,60]
[314250459,1708119094723,-500.0,0.00050136,60]
[314250460,1708119094733,-4525.95,0.00050136,60]
[314250461,1708119094743,-648.82,0.00050136,60]
[314250462,1708119094753,-5354.43,0.00050136,60]
[314250463,1708119094763,-703.45,0.00050136,60]
[314250464,1708119094775,-1211.83,0.00050136,60]
[314250465,1708119094785,-500.0,0.00050136,60]
[314250466,1708119094794,-871.55,0.00050136,60]
[314250467,1708119094804,-609.42,0.00050136,60]
[314250468,1708119094814,-1231.04,0.00050136,60]
[314250469,1708119094824,-737.52,0.00050136,60]
[314250470,1708119094833,-591.52,0.00050136,60]
[314250471,1708119094843,-719.76,0.00050136,60]
[314250472,1708119094853,-2765.99,0.00050136,60]
[314250473,1708119094862,-500.0,0.00050136,60]
[314250474,1708119094872,-1575.91,0.00050136,60]
[314250475,1708119094881,-500.0,0.00050136,60]
[314250476,1708119094891,-500.0,0.00050136,60]
[314250477,1708119094901,-868.38,0.00050136,60]
[314250478,1708119094911,-606.97,0.00050136,60]
[314250479,1708119094924,-9546.8,0.00050136,60]
[314250480,1708119094934,-500.0,0.00050136,60]
[314250481,1708119094944,-2411.87,0.00050136,60]
[314250482,1708119094954,-500.0,0.00050136,60]
[314250483,1708119094963,-500.0,0.00050136,60]
[314250484,1708119094973,-500.0,0.00050136,60]
[314250485,1708119094983,-500.0,0.00050136,60]
[314250486,1708119094993,-570.56,0.00050136,60]
[314250487,1708119095005,-500.0,0.00050136,60]
[314250488,1708119095016,-1028.79,0.00050136,60]
[314250489,1708119095027,-500.0,0.00050136,60]
[314250490,1708119095037,-1081.67,0.00050136,60]
[314250491,1708119095048,-500.0,0.00050136,60]
[314250492,1708119095059,-500.0,0.00050136,60]
[314250493,1708119095069,-500.0,0.00050136,60]
[314250494,1708119095080,-500.0,0.00050136,60]
[314250495,1708119095090,-8340.13,0.00050136,60]
[314250496,1708119095101,-500.0,0.00050136,60]
[314250497,1708119095111,-6395.6,0.00050136,14]
[314250498,1708119095121,-500.0,0.00050136,60]
[314250499,1708119095132,-500.0,0.00050136,60]
[314250500,1708119095143,-500.0,0.00050136,60]
[314250501,1708119095153,-500.0,0.00050136,60]
[314250502,1708119095163,-500.0,0.00050136,60]
[314250503,1708119095175,-2287.27,0.00050136,60]
[314250504,1708119095185,-500.0,0.00050136,7]
[314250505,1708119095196,-542.74,0.00050136,60]
[314250506,1708119095206,-500.0,0.00050136,60]
[314250507,1708119095217,-500.0,0.00050136,60]
[314250508,1708119095227,-1517.81,0.00050136,60]
[314250509,1708119095238,-520.3,0.00050136,60]
[314250510,1708119095248,-500.0,0.00050136,60]
[314250511,1708119095258,-500.0,0.00050136,60]
[314250512,1708119095268,-7477.21,0.00050136,60]
[314250513,1708119095279,-500.0,0.00050136,60]
[314250514,1708119095289,-714.64,0.00050136,60]
[314250515,1708119095300,-500.0,0.00050136,60]
[314250516,1708119095311,-630.12,0.00050136,60]
[314250517,1708119095321,-520.53530572,0.00050136,60]
[314250518,1708119095332,-500.0,0.00050136,60]
[314250519,1708119095342,-500.0,0.00050136,60]
[314250520,1708119095352,-500.0,0.00050136,60]
[314250521,1708119095363,-500.0,0.00050136,60]
[314250522,1708119095373,-722.94,0.00050136,60]
[314250523,1708119095384,-910.24,0.00050136,60]
[314250524,1708119095395,-511.12042203,0.00050136,60]
[314250525,1708119095405,-3306.89,0.00050136,60]
[314250526,1708119095416,-500.0,0.00050136,60]
[314250527,1708119095426,-544.82,0.00050136,60]
[314250528,1708119095436,-5810.7,0.00050136,60]
[314250529,1708119095446,-2333.25,0.00050136,60]
[314250530,1708119095456,-500.0,0.00050136,60]
[314250531,1708119095466,-1821.43,0.00050136,60]
[314250532,1708119095475,-500.0,0.00050136,60]
[314250533,1708119095486,-1107.39,0.00050136,60]
[314250534,1708119095496,-500.0,0.00050136,60]
[314250535,1708119095505,-3684.25,0.00050136,60]
[314250536,1708119095516,-539.02064044,0.00050136,30]
[314250537,1708119095525,-583.02,0.00050136,60]
[314250538,1708119095537,-500.0,0.00050136,60]
[314250539,1708119095547,-500.0,0.00050136,60]
[314250540,1708119095559,-673.09,0.00050136,60]
[314250541,1708119095571,-500.0,0.00050136,60]
[314250542,1708119095581,-530.67,0.00050136,60]
[314250543,1708119095592,-500.0,0.00050136,60]
[314250544,1708119095603,-500.0,0.00050136,60]
[314250545,1708119095613,-500.0,0.00050136,60]
[314250546,1708119095624,-500.0,0.00050136,60]
[314250547,1708119095634,-500.0,0.00050136,60]
[314250548,1708119095643,-868.96,0.00050136,60]
[314250549,1708119095653,-500.0,0.00050136,60]
[314250550,1708119095662,-688.48,0.00050136,60]
[314250551,1708119095672,-500.0,0.00050136,60]
[314250552,1708119095683,-2624.63,0.00050136,60]
[314250553,1708119095694,-500.0,0.00050136,60]
[314250554,1708119095705,-500.0,0.00050136,60]
[314250555,1708119095715,-842.25,0.00050136,60]
[314250556,1708119095725,-500.0,0.00050136,60]
[314250557,1708119095736,-905.88,0.00050136,60]
[314250558,1708119095746,-500.0,0.00050136,60]
[314250559,1708119095756,-500.0,0.00050136,60]
[314250560,1708119095766,-500.0,0.00050136,60]
[314250561,1708119095777,-1344.54,0.00050136,60]
[314250562,1708119095787,-500.0,0.00050136,60]
[314250563,1708119095798,-842.36,0.00050136,2]
[314250564,1708119095808,-2942.14,0.00050136,60]
[314250565,1708119095819,-505.82,0.00050136,60]
[314250566,1708119095829,-500.0,0.00050136,60]
[314250567,1708119095839,-2570.64,0.00050136,60]
[314250568,1708119095849,-2688.02,0.00050136,60]
[314250569,1708119095859,-2260.09,0.00050136,60]
[314250570,1708119095868,-500.0,0.00050136,60]
[314250571,1708119095879,-500.0,0.00050136,60]
[314250572,1708119095889,-716.26,0.00050136,60]
[314250573,1708119095900,-924.33,0.00050136,60]
[314250574,1708119095913,-500.0,0.00050136,60]
[314250575,1708119095927,-500.0,0.00050136,60]
[314250576,1708119095938,-657.39,0.00050136,60]
[314250577,1708119095948,-500.0,0.00050136,60]
[314250578,1708119095959,-2023.51,0.00050136,60]
[314250579,1708119095970,-1625.46,0.00050136,60]
[314250580,1708119095981,-506.3,0.00050136,60]
[314250581,1708119095992,-500.0,0.00050136,60]
[314250582,1708119096004,-953.19,0.00050136,60]
[314250583,1708119096015,-680.83,0.00050136,60]
[314250584,1708119096207,-500.0,0.00050136,60]
[314250585,1708119096218,-1719.81,0.00050136,60]
[314250586,1708119096227,-586.01,0.00050136,60]
[314250587,1708119096237,-562.1,0.00050136,60]
[314250588,1708119096247,-582.82,0.00050136,60]
[314250589,1708119096256,-659.84,0.00050136,60]
[314250590,1708119096266,-4202.04,0.00050136,60]
[314250591,1708119096276,-7068.33,0.00050136,60]
[314250592,1708119096285,-500.0,0.00050136,60]
[314250593,1708119096294,-500.0,0.00050136,60]
[314250594,1708119096304,-500.0,0.00050136,60]
[314250595,1708119096313,-2643.96,0.00050136,60]
[314250596,1708119096322,-500.0,0.00050136,60]
[314250597,1708119096331,-500.0,0.00050136,60]
[314250598,1708119096341,-600.0,0.00050136,60]
[314250599,1708119096350,-1183.13,0.00050136,60]
[314250600,1708119096359,-500.0,0.00050136,60]
[314250601,1708119096368,-1949.14,0.00050136,60]
[314250602,1708119096378,-500.0,0.00050136,60]
[314250603,1708119096387,-1927.89,0.00050136,60]
[314250604,1708119096396,-566.21,0.00050136,60]
[314250605,1708119096406,-500.0,0.00050136,60]
[314250606,1708119096415,-699.96,0.00050136,60]
[314250607,1708119096425,-1200.81,0.00050136,60]
[314250608,1708119096434,-500.0,0.00050136,60]
[314250609,1708119096444,-500.0,0.00050136,60]
[314250610,1708119096454,-3348.01,0.00050136,60]
[314250611,1708119096464,-500.0,0.00050136,60]
[314250612,1708119096473,-1872.95,0.00050136,60]
[314250613,1708119096482,-529.58,0.00050136,60]
[314250614,1708119096491,-500.0,0.00050136,60]
[314250615,1708119096501,-716.71,0.00050136,60]
[314250616,1708119096510,-693.17,0.00050136,60]
[314250617,1708119096520,-1099.89,0.00050136,60]
[314250618,1708119096529,-500.0,0.00050136,60]
[314250619,1708119096539,-500.0,0.00050136,60]
[314250620,1708119096548,-500.0,0.00050136,60]
[314250621,1708119096558,-552.07,0.00050136,60]
[314250622,1708119096568,-1791.39,0.00050136,60]
[314250623,1708119096577,-500.0,0.00050136,60]
[314250624,1708119096586,-573.51,0.00050136,60]
[314250625,1708119096596,-777.88,0.00050136,60]
[314250626,1708119096606,-500.0,0.00050136,60]
[314250627,1708119096616,-500.0,0.00050136,60]
[314250628,1708119096625,-1055.53,0.00050136,60]
[314250629,1708119096634,-722.67,0.00050136,60]
[314250630,1708119096644,-1887.23,0.00050136,60]
[314250631,1708119096654,-500.0,0.00050136,60]
[314250632,1708119096663,-500.0,0.00050136,60]
[314250633,1708119096673,-674.89,0.00050136,60]
[314250634,1708119096683,-2198.11,0.00050136,60]
[314250635,1708119096692,-8115.72,0.00050136,60]
[314250636,1708119096703,-500.0,0.00050136,60]
[314250637,1708119096712,-375.3051946,0.00050136,60]
[314250638,1708119096722,-701.75,0.00050136,60]
[314250639,1708119096732,-500.0,0.00050136,60]
[314250640,1708119096741,-779.02,0.00050136,60]
[314250641,1708119096751,-500.0,0.00050136,60]
[314250642,1708119096760,-1002.39,0.00050136,60]
[314250643,1708119096770,-500.0,0.00050136,60]
[314250644,1708119096779,-500.0,0.00050136,60]
[314250645,1708119096788,-1115.22,0.00050136,60]
[314250646,1708119096798,-500.0,0.00050136,60]
[314250647,1708119096807,-1272.04,0.00050136,60]
[314250648,1708119096818,-505.42,0.00050136,60]
[314250649,1708119096828,-3301.31,0.00050136,60]
[314250650,1708119096839,-626.52,0.00050136,60]
[314250651,1708119096848,-500.0,0.00050136,60]
[314250652,1708119096858,-500.0,0.00050136,60]
[314250653,1708119096868,-500.0,0.00050136,60]
[314250654,1708119096877,-500.0,0.00050136,60]
[314250655,1708119096887,-500.0,0.00050136,60]
[314250656,1708119096896,-500.0,0.00050136,60]
[314250657,1708119096906,-1972.92,0.00050136,60]
[314250658,1708119096918,-500.0,0.00050136,60]
[314250659,1708119096928,-991.91,0.00050136,60]
[314250660,1708119096938,-514.68533102,0.00050136,60]
[314250661,1708119096947,-914.46,0.00050136,60]
[314250662,1708119096957,-500.0,0.00050136,60]
[314250663,1708119096966,-536.93,0.00050136,60]
[314250664,1708119096976,-500.0,0.00050136,60]
[314250665,1708119096986,-500.0,0.00050136,60]
[314250666,1708119096995,-500.0,0.00050136,60]
[314250667,1708119097005,-500.0,0.00050136,60]
[314250668,1708119097014,-500.0,0.00050136,60]
[314250669,1708119097024,-500.0,0.00050136,60]
[314250670,1708119097033,-6496.83,0.00050136,60]
[314250671,1708119097042,-500.0,0.00050136,2]
[314250672,1708119097052,-500.0,0.00050136,60]
[314250673,1708119097061,-385.0,0.00050137,120]
[314250674,1708119097070,-177.883,0.00050137,120]
[314250675,1708119097079,-858.0,0.00050137,120]
[314250676,1708119097088,-429.0,0.00050137,120]
[314250677,1708119097097,-321.0,0.00050137,120]
[314250678,1708119097106,-343.0,0.00050137,120]
[314250679,1708119097117,-2871.0,0.00050137,120]
[314250680,1708119097126,-1138.0,0.00050137,120]
[314250681,1708119097136,-150.0,0.00050137,120]
[314250682,1708119097146,-454.0,0.00050137,120]
[314250683,1708119097155,-8164.0,0.00050137,120]
[314250684,1708119097164,-2289.0,0.00050137,120]
[314250685,1708119097174,-2927.0,0.00050137,120]
[314250686,1708119097184,-2011.996,0.00050137,120]
[314250687,1708119097193,-4098.0,0.00050137,120]
[314250688,1708119097203,-4200.745,0.00050137,120]
[314250689,1708119097213,-1091.933,0.00050137,120]
[314250690,1708119097222,-19846.0,0.00050137,120]
[314250691,1708119097232,-842.0,0.00050137,2]
[314250692,1708119097242,-953.0,0.00050137,120]
[314250693,1708119097251,-177.0556127,0.00050155,60]
[314250694,1708119097261,-150.95,0.00050158,2]
[314250695,1708119097271,-311.0,0.00050163,60]
[314250696,1708119097280,-176.0,0.00050195,60]
[314250697,1708119097289,-1414.09,0.000502,2]
[314250698,1708119097299,-500.0,0.00050228,14]
[314250699,1708119097309,-177.0556127,0.00050235,60]
[314250700,1708119097318,-150.0,0.000503,21]
[314250701,1708119097328,-1208.0,0.00050355,30]
[314250702,1708119097339,-152.72220558,0.00050379,46]